[Event "FIDE World Rapid-ch Open 2018"]
[White "Riazantsev, Alexander"]
[Black "Moiseenko, Vadim"]
[Site "St. Petersburg"]
[Round "14.27"]
[Annotator "ChessBase"]
[Result "1-0"]
[Date "2018.12.28"]
[WhiteElo "2649"]
[BlackElo "2501"]
[PlyCount "283"]
[TimeControl "900+10"]

1. d4 {[%emt 0:0:0]} d5 {[%emt 0:0:0]} 2. c4 {[%emt 0:0:0]} dxc4 {[%emt 0:0:0]
} 3. e3 {[%emt 0:0:0]} e5 {[%emt 0:0:0]} 4. Bxc4 {[%emt 0:0:0]} Nc6 {[%emt 0:0:1]} 5. Nf3 {[%emt 0:0:24]} e4 {[%emt 0:0:2]} 6. Nfd2 {[%emt 0:0:47]
} Qg5 {[%emt 0:0:2]} 7. Nxe4 {[%emt 0:0:7]} Qxg2 {[%emt 0:0:0]} 8. Ng3 {[%emt 0:0:1]} Qh3 {[%emt 0:0:2]} 9. Nc3 {[%emt 0:0:39]} Nf6 {[%emt 0:0:2]
} 10. e4 {[%emt 0:2:0]} Bg4 {[%emt 0:2:41]} 11. f3 {[%emt 0:0:0]} 0-0-0 {[%emt 0:2:1]} 12. Bf1 {[%emt 0:1:28]} Qh4 {[%emt 0:0:21]} 13. fxg4 {[%emt 0:2:45]} Nxd4 {[%emt 0:0:26]} 14. Be3 {[%emt 0:0:4]} Bc5 {[%emt 0:2:20]
} 15. Bxd4 {[%emt 0:0:2]} Rxd4 {[%emt 0:0:3]} 16. Qf3 {[%emt 0:0:1]
} Kb8 {[%emt 0:2:43]} 17. Bd3 {[%emt 0:0:15]} Nxg4 {[%emt 0:0:0]} 18. 0-0-0 {[%emt 0:0:1]} Rhd8 {[%emt 0:1:11]} 19. Bc2 {[%emt 0:2:21]} Nxh2 {[%emt 0:0:16]} 20. Qg2 {[%emt 0:1:38]} Qf4+ {[%emt 0:1:29]} 21. Kb1 {[%emt 0:0:2]
} Nf3 {[%emt 0:0:27]} 22. Rxd4 {[%emt 0:0:30]} Nxd4 {[%emt 0:0:0]} 23. Rd1 {[%emt 0:0:34]} Qe5 {[%emt 0:0:33]} 24. Nf5 {[%emt 0:0:49]} g6 {[%emt 0:0:2]} 25. Ne3 {[%emt 0:0:12]} c6 {[%emt 0:0:43]} 26. Nc4 {[%emt 0:0:17]
} Qe6 {[%emt 0:0:9]} 27. Qg5 {[%emt 0:0:29]} Be7 {[%emt 0:0:0]} 28. Qe5+ {[%emt 0:0:58]} Qxe5 {[%emt 0:0:8]} 29. Nxe5 {[%emt 0:0:1]} f6 {[%emt 0:0:22]} 30. Nf7 {[%emt 0:0:21]} Rd7 {[%emt 0:0:22]} 31. e5 {[%emt 0:0:33]
} Bc5 {[%emt 0:0:13]} 32. e6 {[%emt 0:0:57]} Re7 {[%emt 0:0:0]} 33. Ne4 {[%emt 0:0:51]} Nxe6 {[%emt 0:0:13]} 34. Bb3 {[%emt 0:0:0]} Bb6 {[%emt 0:0:9]} 35. Nxf6 {[%emt 0:0:19]} Rxf7 {[%emt 0:0:35]} 36. Nd7+ {[%emt 0:0:1]
} Rxd7 {[%emt 0:0:1]} 37. Rxd7 {[%emt 0:0:1]} Ng5 {[%emt 0:0:0]} 38. Bg8 {[%emt 0:0:0]} Kc8 {[%emt 0:0:1]} 39. Re7 {[%emt 0:0:6]} Bd8 {[%emt 0:0:1]} 40. Re5 {[%emt 0:0:24]} h5 {[%emt 0:0:24]} 41. Bc4 {[%emt 0:0:11]
} Bf6 {[%emt 0:0:9]} 42. Re8+ {[%emt 0:0:2]} Kd7 {[%emt 0:0:0]} 43. Rg8 {[%emt 0:0:1]} h4 {[%emt 0:0:11]} 44. Rxg6 {[%emt 0:0:1]} Be7 {[%emt 0:0:1]} 45. Rh6 {[%emt 0:0:8]} h3 {[%emt 0:0:29]} 46. Bf1 {[%emt 0:0:0]} Bd6 {[%emt 0:0:15]} 47. Bxh3+ {[%emt 0:0:4]} Nxh3 {[%emt 0:0:3]} 48. Rxh3 {[%emt 0:0:2]} Kc7 {[%emt 0:0:33]} 49. Rh7+ {[%emt 0:0:1]} Kb6 {[%emt 0:0:1]
} 50. Kc2 {[%emt 0:0:3]} a5 {[%emt 0:0:3]} 51. a4 {[%emt 0:0:0]} Be5 {[%emt 0:0:3]} 52. b3 {[%emt 0:0:4]} Ka6 {[%emt 0:0:16]} 53. Rh6 {[%emt 0:0:2]} Kb6 {[%emt 0:0:5]} 54. Kd3 {[%emt 0:0:2]} Bb2 {[%emt 0:0:9]
} 55. Rh7 {[%emt 0:0:5]} Ka6 {[%emt 0:0:3]} 56. Rh6 {[%emt 0:0:0]} Kb6 {[%emt 0:0:3]} 57. Kc4 {[%emt 0:0:7]} Be5 {[%emt 0:0:19]} 58. Rh5 {[%emt 0:0:3]} Bb2 {[%emt 0:0:4]} 59. Rh7 {[%emt 0:0:9]} Be5 {[%emt 0:0:2]
} 60. Kd3 {[%emt 0:0:2]} Ka6 {[%emt 0:0:6]} 61. Ke4 {[%emt 0:0:0]} Bc3 {[%emt 0:0:10]} 62. Rh3 {[%emt 0:0:46]} Bb2 {[%emt 0:0:5]} 63. Rh6 {[%emt 0:0:6]} Kb6 {[%emt 0:0:11]} 64. Rh5 {[%emt 0:0:2]} Ka6 {[%emt 0:0:4]
} 65. Kf5 {[%emt 0:0:18]} b5 {[%emt 0:0:24]} 66. Ke6 {[%emt 0:0:0]} bxa4 {[%emt 0:0:4]} 67. bxa4 {[%emt 0:0:0]} Kb6 {[%emt 0:0:3]} 68. Kd7 {[%emt 0:0:1]} Ba3 {[%emt 0:0:8]} 69. Rh6 {[%emt 0:0:19]} Kc5 {[%emt 0:0:1]
} 70. Kc7 {[%emt 0:0:1]} Kb4 {[%emt 0:0:53]} 71. Rh4+ {[%emt 0:0:10]
} Kc5 {[%emt 0:0:1]} 72. Rh3 {[%emt 0:0:48]} Kb4 {[%emt 0:0:0]} 73. Rh4+ {[%emt 0:0:5]} Kc5 {[%emt 0:0:1]} 74. Kb7 {[%emt 0:0:1]} Bb2 {[%emt 0:0:9]} 75. Rh2 {[%emt 0:0:13]} Ba3 {[%emt 0:0:30]} 76. Ka6 {[%emt 0:0:32]
} Bb4 {[%emt 0:0:3]} 77. Kb7 {[%emt 0:0:19]} Ba3 {[%emt 0:0:0]} 78. Ka6 {[%emt 0:0:1]} Bb4 {[%emt 0:0:0]} 79. Rc2+ {[%emt 0:0:1]} Kd5 {[%emt 0:0:2]} 80. Kb6 {[%emt 0:0:1]} c5 {[%emt 0:0:2]} 81. Kb5 {[%emt 0:0:1]
} Kd4 {[%emt 0:0:34]} 82. Rc4+ {[%emt 0:0:1]} Kd3 {[%emt 0:0:0]} 83. Rc1 {[%emt 0:0:17]} Kd4 {[%emt 0:0:3]} 84. Rc2 {[%emt 0:0:11]} Kd3 {[%emt 0:0:27]} 85. Rc4 {[%emt 0:0:1]} Ke3 {[%emt 0:0:12]} 86. Kc6 {[%emt 0:0:28]
} Kd3 {[%emt 0:0:3]} 87. Kd5 {[%emt 0:0:0]} Ba3 {[%emt 0:0:0]} 88. Rh4 {[%emt 0:0:5]} Kc3 {[%emt 0:0:6]} 89. Kc6 {[%emt 0:0:45]} Bb4 {[%emt 0:0:4]} 90. Kb5 {[%emt 0:0:1]} Kd3 {[%emt 0:0:4]} 91. Rh3+ {[%emt 0:0:4]
} Kd4 {[%emt 0:0:3]} 92. Rg3 {[%emt 0:0:8]} Kd5 {[%emt 0:0:0]} 93. Rd3+ {[%emt 0:0:2]} Ke5 {[%emt 0:0:7]} 94. Kc4 {[%emt 0:0:3]} Ke4 {[%emt 0:0:2]} 95. Rd5 {[%emt 0:0:6]} Ke3 {[%emt 0:0:11]} 96. Re5+ {[%emt 0:0:3]
} Kf4 {[%emt 0:0:28]} 97. Kd5 {[%emt 0:0:1]} Kf3 {[%emt 0:0:0]} 98. Re4 {[%emt 0:0:6]} Ba3 {[%emt 0:0:3]} 99. Rh4 {[%emt 0:0:35]} Bb4 {[%emt 0:0:4]} 100. Kc4 {[%emt 0:0:6]} Ke3 {[%emt 0:0:3]} 101. Rh8 {[%emt 0:0:27]
} Ke4 {[%emt 0:0:8]} 102. Re8+ {[%emt 0:0:4]} Kf4 {[%emt 0:0:0]} 103. Kd3 {[%emt 0:0:3]} Kf5 {[%emt 0:0:15]} 104. Re4 {[%emt 0:0:4]
} Ba3 {[%emt 0:0:6]} 105. Ke3 {[%emt 0:0:34]} Bb4 {[%emt 0:0:6]} 106. Kf3 {[%emt 0:0:1]} Ba3 {[%emt 0:0:13]} 107. Re8 {[%emt 0:0:37]} Bb4 {[%emt 0:0:0]} 108. Ke3 {[%emt 0:0:4]} Ba3 {[%emt 0:0:2]} 109. Rh8 {[%emt 0:0:17]
} Bc1+ {[%emt 0:0:20]} 110. Kf3 {[%emt 0:0:5]} Ke5 {[%emt 0:0:24]} 111. Ra8 {[%emt 0:0:21]} Bd2 {[%emt 0:0:7]} 112. Re8+ {[%emt 0:0:5]} Kf5 {[%emt 0:0:0]} 113. Rd8 {[%emt 0:0:3]} Bb4 {[%emt 0:0:7]} 114. Rd5+ {[%emt 0:0:0]} Ke6 {[%emt 0:0:15]} 115. Ke4 {[%emt 0:0:2]} c4 {[%emt 0:0:14]} 116. Rd8 {[%emt 0:0:13]} c3 {[%emt 0:0:3]} 117. Rc8 {[%emt 0:0:1]} Kd7 {[%emt 0:0:8]
} 118. Rc4 {[%emt 0:0:2]} Kd6 {[%emt 0:0:4]} 119. Kd4 {[%emt 0:0:2]
} Ke6 {[%emt 0:0:12]} 120. Rc6+ {[%emt 0:0:1]} Kf5 {[%emt 0:0:0]} 121. Kd5 {[%emt 0:0:33]} Kf4 {[%emt 0:0:9]} 122. Kd4 {[%emt 0:0:18]
} Kf5 {[%emt 0:0:2]} 123. Rc8 {[%emt 0:0:18]} Kf4 {[%emt 0:0:9]} 124. Rc4 {[%emt 0:0:19]} Kf5 {[%emt 0:0:9]} 125. Kd5 {[%emt 0:0:0]} Kf6 {[%emt 0:0:0]} 126. Rf4+ {[%emt 0:0:16]} Ke7 {[%emt 0:0:2]} 127. Rf2 {[%emt 0:0:0]} Ba3 {[%emt 0:0:16]} 128. Re2+ {[%emt 0:0:13]} Kd7 {[%emt 0:0:6]} 129. Rc2 {[%emt 0:0:10]} Bb4 {[%emt 0:0:4]} 130. Rh2 {[%emt 0:0:5]} Ke7 {[%emt 0:0:1]
} 131. Rh7+ {[%emt 0:0:4]} Kd8 132. Rh2 {[%emt 0:0:26]} Ke7 {[%emt 0:0:26]
} 133. Re2+ {[%emt 0:0:6]} Kd7 {[%emt 0:0:2]} 134. Rg2 {[%emt 0:0:11]
} Ke7 {[%emt 0:0:0]} 135. Kc6 {[%emt 0:0:1]} Kf6 {[%emt 0:0:0]} 136. Re2 {[%emt 0:0:1]} Kf5 {[%emt 0:0:9]} 137. Kd5 {[%emt 0:0:2]} Kf6 {[%emt 0:0:9]} 138. Kc4 {[%emt 0:0:7]} Kf5 {[%emt 0:0:6]} 139. Kd3 {[%emt 0:0:2]
} Kf6 {[%emt 0:1:8]} 140. Re4 {[%emt 0:0:2]} Bd6 {[%emt 0:0:0]} 141. Kxc3 {[%emt 0:0:3]} Be5+ {[%emt 0:0:9]} 142. Kc4 {[%emt 0:0:5]} 1-0

[Event "FIDE World Rapid-ch Open 2018"]
[White "Tari, Aryan"]
[Black "Shirov, Alexei"]
[Site "St. Petersburg"]
[Round "14.28"]
[Annotator "ChessBase"]
[Result "0-1"]
[Date "2018.12.28"]
[WhiteElo "2620"]
[BlackElo "2643"]
[PlyCount "80"]
[TimeControl "900+10"]

1. e4 {[%emt 0:0:0]} e5 {[%emt 0:0:0]} 2. Nf3 {[%emt 0:0:0]} Nf6 {[%emt 0:0:0]
} 3. Nxe5 {[%emt 0:0:2]} d6 {[%emt 0:0:0]} 4. Nf3 {[%emt 0:0:0]} Nxe4 {[%emt 0:0:0]} 5. d4 {[%emt 0:0:2]} d5 {[%emt 0:0:0]} 6. Bd3 {[%emt 0:0:2]} Bd6 {[%emt 0:0:1]} 7. 0-0 {[%emt 0:0:4]} 0-0 {[%emt 0:0:0]} 8. c4 {[%emt 0:0:2]} c6 {[%emt 0:0:1]} 9. Nc3 {[%emt 0:0:5]} Nxc3 {[%emt 0:0:58]
} 10. bxc3 {[%emt 0:0:1]} dxc4 {[%emt 0:0:2]} 11. Bxc4 {[%emt 0:0:1]
} Bf5 {[%emt 0:0:1]} 12. Bg5 {[%emt 0:0:46]} Qc7 {[%emt 0:0:0]} 13. Re1 {[%emt 0:2:8]} h6 {[%emt 0:0:31]} 14. Bh4 {[%emt 0:0:4]} Nd7 {[%emt 0:0:8]} 15. Be7 {[%emt 0:0:17]} Bxe7 {[%emt 0:2:37]} 16. Rxe7 {[%emt 0:0:2]
} Qd6 {[%emt 0:0:3]} 17. Qe2 {[%emt 0:0:39]} b5 {[%emt 0:0:0]} 18. Bb3 {[%emt 0:1:54]} a5 {[%emt 0:4:35]} 19. Nh4 {[%emt 0:3:12]} Bh7 {[%emt 0:0:7]} 20. Re1 {[%emt 0:0:19]} Nf6 {[%emt 0:0:18]} 21. Bc2 {[%emt 0:1:46]
} Bxc2 {[%emt 0:0:4]} 22. Qxc2 {[%emt 0:0:1]} Nd5 {[%emt 0:0:0]} 23. R7e5 {[%emt 0:0:17]} Qa3 {[%emt 0:0:47]} 24. Nf5 {[%emt 0:0:41]} Qxc3 {[%emt 0:0:16]} 25. Qd1 {[%emt 0:0:15]} Kh7 {[%emt 0:3:13]} 26. h3 {[%emt 0:1:18]
} g6 {[%emt 0:0:8]} 27. Nd6 {[%emt 0:1:50]} b4 {[%emt 0:1:56]
} 28. Qg4 {[%emt 0:0:41]} a4 {[%emt 0:0:26]} 29. Kh2 {[%emt 0:1:26]} b3 {[%emt 0:0:29]
} 30. Ne4 {[%emt 0:0:7]} Qxe1 {[%emt 0:1:1]} 31. Ng5+ {[%emt 0:0:1]
} hxg5 {[%emt 0:0:3]} 32. Rxe1 {[%emt 0:0:1]} b2 {[%emt 0:0:0]} 33. Qxg5 {[%emt 0:0:10]} Rab8 {[%emt 0:0:2]} 34. h4 {[%emt 0:0:10]} b1=Q {[%emt 0:0:25]} 35. Rxb1 {[%emt 0:0:1]} Rxb1 {[%emt 0:0:2]} 36. h5 {[%emt 0:0:1]
} Rb2 {[%emt 0:0:5]} 37. Qh4 {[%emt 0:0:13]} Kg7 {[%emt 0:0:0]} 38. h6+ {[%emt 0:0:16]} Kh7 {[%emt 0:0:3]} 39. a3 {[%emt 0:0:25]} Re8 {[%emt 0:0:11]} 40. Qg5 {[%emt 0:0:16]} Rxf2 {[%emt 0:0:6]} 0-1

[Event "FIDE World Rapid-ch Open 2018"]
[White "Grachev, Boris"]
[Black "Levin, Evgeny A."]
[Site "St. Petersburg"]
[Round "14.29"]
[Annotator "ChessBase"]
[Result "1/2-1/2"]
[Date "2018.12.28"]
[WhiteElo "2626"]
[BlackElo "2516"]
[PlyCount "62"]
[TimeControl "900+10"]

1. Nf3 {[%emt 0:0:0]} Nf6 {[%emt 0:0:0]} 2. d4 {[%emt 0:0:0]} e6 {[%emt 0:0:0]
} 3. c4 {[%emt 0:0:1]} b6 {[%emt 0:0:0]} 4. Bf4 {[%emt 0:0:0]} Bb7 {[%emt 0:0:7]} 5. e3 {[%emt 0:0:5]} g6 {[%emt 0:1:7]} 6. Nc3 {[%emt 0:0:17]
} Bg7 {[%emt 0:0:10]} 7. h3 {[%emt 0:0:37]} d6 {[%emt 0:0:6]} 8. Bd3 {[%emt 0:0:11]} Nbd7 {[%emt 0:0:3]} 9. 0-0 {[%emt 0:1:5]} 0-0 {[%emt 0:0:15]
} 10. e4 {[%emt 0:0:7]} e5 {[%emt 0:0:52]} 11. Bg5 {[%emt 0:0:0]} h6 {[%emt 0:1:40]} 12. Bh4 {[%emt 0:0:11]} g5 {[%emt 0:3:49]} 13. Bg3 {[%emt 0:0:2]} Nh5 {[%emt 0:0:18]} 14. d5 {[%emt 0:0:6]} Nf4 {[%emt 0:0:0]} 15. Bc2 {[%emt 0:0:8]} Nf6 {[%emt 0:0:18]} 16. Nh2 {[%emt 0:1:35]} Bc8 {[%emt 0:0:57]} 17. Ng4 {[%emt 0:1:11]} Nxg4 {[%emt 0:0:18]} 18. hxg4 {[%emt 0:0:2]
} h5 {[%emt 0:0:28]} 19. f3 {[%emt 0:1:49]} hxg4 {[%emt 0:0:0]} 20. fxg4 {[%emt 0:0:17]} Qd7 {[%emt 0:0:21]} 21. Bf2 {[%emt 0:1:31]} Qxg4 {[%emt 0:0:19]} 22. Qxg4 {[%emt 0:0:3]} Bxg4 {[%emt 0:0:2]} 23. Bd1 {[%emt 0:0:15]
} Bd7 {[%emt 0:0:47]} 24. Be3 {[%emt 0:0:3]} f5 {[%emt 0:0:0]} 25. Bc2 {[%emt 0:0:43]} fxe4 {[%emt 0:0:8]} 26. Bxe4 {[%emt 0:0:8]} Bh6 {[%emt 0:1:49]} 27. g3 {[%emt 0:0:26]} Nh5 {[%emt 0:0:21]} 28. Kg2 {[%emt 0:0:29]
} Kg7 {[%emt 0:0:29]} 29. Bc2 {[%emt 0:3:29]} Nf6 {[%emt 0:0:0]} 30. Ne4 {[%emt 0:0:5]} Nxe4 {[%emt 0:0:20]} 31. Bxe4 {[%emt 0:0:1]} Rxf1 {[%emt 0:0:48]} 1/2-1/2

[Event "FIDE World Rapid-ch Open 2018"]
[White "Timofeev, Artyom"]
[Black "Goganov, Aleksey"]
[Site "St. Petersburg"]
[Round "14.30"]
[Annotator "ChessBase"]
[Result "0-1"]
[Date "2018.12.28"]
[WhiteElo "2589"]
[BlackElo "2612"]
[PlyCount "170"]
[TimeControl "900+10"]

1. c4 {[%emt 0:0:0]} c6 {[%emt 0:0:0]} 2. Nf3 {[%emt 0:0:17]} d5 {[%emt 0:0:0]} 3. e3 {[%emt 0:0:2]} Nf6 {[%emt 0:0:0]} 4. Nc3 {[%emt 0:0:2]} e6 {[%emt 0:0:2]} 5. b3 {[%emt 0:0:22]} Bd6 {[%emt 0:0:5]} 6. Bb2 {[%emt 0:0:0]} 0-0 {[%emt 0:0:4]} 7. d4 {[%emt 0:0:36]} Nbd7 {[%emt 0:0:29]} 8. Be2 {[%emt 0:0:6]} b6 {[%emt 0:0:19]} 9. 0-0 {[%emt 0:0:16]} Bb7 {[%emt 0:0:0]} 10. Qc2 {[%emt 0:0:18]} Qe7 {[%emt 0:0:6]} 11. cxd5 {[%emt 0:0:30]} exd5 {[%emt 0:0:8]} 12. Bd3 {[%emt 0:0:46]} Rfe8 {[%emt 0:1:14]} 13. Ne2 {[%emt 0:0:46]
} Ne4 {[%emt 0:1:5]} 14. Ng3 {[%emt 0:0:36]} g6 {[%emt 0:0:0]} 15. Rfe1 {[%emt 0:0:38]} f5 {[%emt 0:3:29]} 16. Nf1 {[%emt 0:0:12]} Rf8 {[%emt 0:0:9]} 17. N3d2 {[%emt 0:0:23]} Rae8 {[%emt 0:0:28]} 18. f3 {[%emt 0:0:10]
} Ng5 {[%emt 0:2:46]} 19. Re2 {[%emt 0:0:16]} Nf6 {[%emt 0:0:0]} 20. Rae1 {[%emt 0:0:5]} Qd7 {[%emt 0:0:42]} 21. Bc3 {[%emt 0:1:34]} Nge4 {[%emt 0:0:55]} 22. Bb2 {[%emt 0:0:9]} Nxd2 {[%emt 0:0:6]} 23. Qxd2 {[%emt 0:0:13]
} Re7 {[%emt 0:0:22]} 24. b4 {[%emt 0:0:10]} b5 {[%emt 0:0:5]
} 25. Qc3 {[%emt 0:0:9]} Rff7 {[%emt 0:1:9]} 26. Bc2 {[%emt 0:0:31]} Re8 {[%emt 0:0:3]
} 27. a4 {[%emt 0:0:17]} Bf8 {[%emt 0:0:11]} 28. Qb3 {[%emt 0:0:0]} Bg7 {[%emt 0:0:42]} 29. Bc3 {[%emt 0:0:29]} Kh8 {[%emt 0:0:1]} 30. Qb1 {[%emt 0:0:10]} bxa4 {[%emt 0:0:13]} 31. Bd3 {[%emt 0:0:2]} Qc8 {[%emt 0:0:23]
} 32. Ra2 {[%emt 0:0:6]} Ba6 {[%emt 0:0:23]} 33. Bxa6 {[%emt 0:0:2]
} Qxa6 {[%emt 0:0:1]} 34. Qc2 {[%emt 0:0:2]} Nd7 {[%emt 0:0:0]} 35. Rxa4 {[%emt 0:0:8]} Qb7 {[%emt 0:0:2]} 36. Ra2 {[%emt 0:1:14]} Nb6 {[%emt 0:0:1]} 37. Qd3 {[%emt 0:0:19]} Rfe7 {[%emt 0:0:5]} 38. Rae2 {[%emt 0:0:3]
} Nc8 {[%emt 0:0:9]} 39. Nd2 {[%emt 0:0:21]} Nd6 {[%emt 0:0:0]} 40. Nb3 {[%emt 0:1:54]} Qb5 {[%emt 0:0:5]} 41. Qxb5 {[%emt 0:0:5]} cxb5 {[%emt 0:0:31]} 42. Kf2 {[%emt 0:0:44]} Nc4 {[%emt 0:0:1]} 43. Nc5 {[%emt 0:0:20]
} Kg8 {[%emt 0:0:3]} 44. Nd3 {[%emt 0:0:32]} Bf6 {[%emt 0:0:0]} 45. Nf4 {[%emt 0:0:13]} Rd7 {[%emt 0:0:11]} 46. Ra2 {[%emt 0:0:18]} Bg5 {[%emt 0:0:16]} 47. Ra6 {[%emt 0:0:29]} Bxf4 {[%emt 0:0:23]} 48. exf4 {[%emt 0:0:2]
} Rxe1 {[%emt 0:0:5]} 49. Bxe1 {[%emt 0:0:9]} Rc7 {[%emt 0:0:0]} 50. g4 {[%emt 0:0:12]} fxg4 {[%emt 0:0:29]} 51. fxg4 {[%emt 0:0:2]} Re7 {[%emt 0:0:5]} 52. f5 {[%emt 0:0:45]} gxf5 {[%emt 0:0:2]} 53. gxf5 {[%emt 0:0:1]
} Rf7 {[%emt 0:0:1]} 54. f6 {[%emt 0:0:11]} Nb6 {[%emt 0:0:0]} 55. Ke2 {[%emt 0:0:10]} Rxf6 {[%emt 0:0:6]} 56. Bg3 {[%emt 0:1:7]} Rf7 {[%emt 0:0:2]} 57. Bb8 {[%emt 0:0:8]} Nc4 {[%emt 0:1:4]} 58. Bxa7 {[%emt 0:0:5]
} Rf4 {[%emt 0:0:19]} 59. Rh6 {[%emt 0:0:36]} Re4+ {[%emt 0:0:0]} 60. Kf2 {[%emt 0:0:27]} Nb2 {[%emt 0:0:10]} 61. Rh3 {[%emt 0:1:12]} Nd1+ {[%emt 0:0:7]} 62. Kg1 {[%emt 0:0:46]} Kg7 {[%emt 0:0:26]} 63. Bc5 {[%emt 0:0:20]
} Kg6 {[%emt 0:0:8]} 64. Ra3 {[%emt 0:0:38]} Kf5 {[%emt 0:0:0]} 65. Rh3 {[%emt 0:0:3]} Kg4 {[%emt 0:0:42]} 66. Rxh7 {[%emt 0:0:20]} Re1+ {[%emt 0:0:1]} 67. Kg2 {[%emt 0:0:1]} Re2+ {[%emt 0:0:1]} 68. Kf1 {[%emt 0:0:5]
} Rb2 {[%emt 0:0:9]} 69. Rg7+ {[%emt 0:0:37]} Kf3 {[%emt 0:0:0]} 70. Rf7+ {[%emt 0:0:1]} Ke4 {[%emt 0:0:7]} 71. Re7+ {[%emt 0:0:18]} Kd3 {[%emt 0:0:14]} 72. h4 {[%emt 0:0:7]} Ne3+ {[%emt 0:0:2]} 73. Kg1 {[%emt 0:0:1]
} Rg2+ {[%emt 0:0:5]} 74. Kh1 {[%emt 0:0:1]} Rg4 {[%emt 0:0:0]} 75. Rh7 {[%emt 0:0:6]} Ke2 {[%emt 0:0:30]} 76. h5 {[%emt 0:0:9]} Nf5 {[%emt 0:0:30]} 77. Rf7 {[%emt 0:0:32]} Rh4+ {[%emt 0:0:11]} 78. Kg2 {[%emt 0:0:20]
} Rxh5 {[%emt 0:0:2]} 79. Rd7 {[%emt 0:0:14]} Rg5+ {[%emt 0:0:0]} 80. Kh2 {[%emt 0:0:9]} Kf2 {[%emt 0:0:11]} 81. Rh7 {[%emt 0:0:1]} Rg4 {[%emt 0:0:24]} 82. Kh3 {[%emt 0:0:3]} Rg3+ {[%emt 0:0:4]} 83. Kh2 {[%emt 0:0:1]
} Rf3 {[%emt 0:0:7]} 84. Rh5 {[%emt 0:0:36]} Ne3 {[%emt 0:0:0]} 85. Be7 {[%emt 0:0:9]} Nf1+ {[%emt 0:0:5]} 0-1

[Event "FIDE World Rapid-ch Open 2018"]
[White "Petrov, Nikita"]
[Black "Kovalenko, Igor"]
[Site "St. Petersburg"]
[Round "14.31"]
[Annotator "ChessBase"]
[Result "0-1"]
[Date "2018.12.28"]
[WhiteElo "2593"]
[BlackElo "2657"]
[PlyCount "164"]
[TimeControl "900+10"]

1. Nf3 {[%emt 0:0:0]} d5 {[%emt 0:0:0]} 2. d4 {[%emt 0:0:0]} c6 {[%emt 0:0:0]} 3. Bf4 {[%emt 0:0:0]} Qb6 {[%emt 0:0:0]} 4. Qc1 {[%emt 0:0:1]} Bg4 {[%emt 0:0:2]} 5. Ne5 {[%emt 0:0:24]} Bf5 {[%emt 0:0:1]} 6. e3 {[%emt 0:0:12]
} f6 {[%emt 0:0:13]} 7. Nf3 {[%emt 0:0:14]} Nd7 {[%emt 0:0:2]
} 8. Be2 {[%emt 0:0:24]} g5 {[%emt 0:0:4]} 9. Bg3 {[%emt 0:0:4]} h5 {[%emt 0:0:1]
} 10. h3 {[%emt 0:1:3]} e6 {[%emt 0:0:2]} 11. c4 {[%emt 0:0:0]} Nh6 {[%emt 0:0:30]} 12. Nc3 {[%emt 0:0:16]} Bg6 {[%emt 0:0:8]} 13. Nd2 {[%emt 0:1:25]} Bg7 {[%emt 0:0:39]} 14. 0-0 {[%emt 0:2:13]} 0-0 {[%emt 0:0:0]} 15. c5 {[%emt 0:1:0]} Qd8 {[%emt 0:0:1]} 16. Qd1 {[%emt 0:0:3]} h4 {[%emt 0:0:20]
} 17. Bd6 {[%emt 0:0:2]} Re8 {[%emt 0:0:12]} 18. e4 {[%emt 0:0:0]} Nf7 {[%emt 0:0:7]} 19. Bh5 {[%emt 0:1:40]} Bxh5 {[%emt 0:0:2]} 20. Qxh5 {[%emt 0:0:1]} dxe4 {[%emt 0:0:11]} 21. Ndxe4 {[%emt 0:0:53]} f5 {[%emt 0:0:2]
} 22. Nd2 {[%emt 0:0:12]} Nf6 {[%emt 0:0:35]} 23. Qg6 {[%emt 0:0:0]} Nh7 {[%emt 0:0:3]} 24. Nf3 {[%emt 0:0:34]} Qf6 {[%emt 0:6:7]} 25. Qxf6 {[%emt 0:0:35]} Bxf6 {[%emt 0:0:3]} 26. Bh2 {[%emt 0:1:21]} Nf8 {[%emt 0:0:19]
} 27. Rfe1 {[%emt 0:0:17]} Rad8 {[%emt 0:0:6]} 28. Rad1 {[%emt 0:0:3]
} Re7 {[%emt 0:0:50]} 29. Ne5 {[%emt 0:2:8]} Bxe5 {[%emt 0:0:0]} 30. Bxe5 {[%emt 0:0:2]} Nxe5 {[%emt 0:0:1]} 31. Rxe5 {[%emt 0:0:2]} Kf7 {[%emt 0:0:30]} 32. Ne2 {[%emt 0:1:23]} Nd7 {[%emt 0:0:7]} 33. Re3 {[%emt 0:0:3]
} Nxc5 {[%emt 0:0:4]} 34. Re1 {[%emt 0:0:5]} Ne4 {[%emt 0:0:0]} 35. f3 {[%emt 0:0:33]} Nf6 {[%emt 0:0:6]} 36. f4 {[%emt 0:0:6]} Nd5 {[%emt 0:0:41]
} 37. Rf3 {[%emt 0:0:2]} g4 {[%emt 0:0:1]} 38. hxg4 {[%emt 0:0:0]} fxg4 {[%emt 0:0:1]} 39. Ra3 {[%emt 0:0:47]} a6 {[%emt 0:0:1]} 40. Nc1 {[%emt 0:0:22]} Nb4 {[%emt 0:0:37]} 41. Rd1 {[%emt 0:0:22]} Red7 {[%emt 0:0:9]
} 42. Ne2 {[%emt 0:0:17]} Kf6 {[%emt 0:0:5]} 43. Rb3 {[%emt 0:0:0]} Nd5 {[%emt 0:0:36]} 44. g3 {[%emt 0:0:1]} Rh8 {[%emt 0:0:14]} 45. Kg2 {[%emt 0:0:20]} Rdh7 {[%emt 0:0:36]} 46. Rh1 {[%emt 0:0:1]} hxg3 {[%emt 0:0:1]
} 47. Rxh7 {[%emt 0:0:15]} Rxh7 {[%emt 0:0:0]} 48. Nxg3 {[%emt 0:0:31]
} Nxf4+ {[%emt 0:0:1]} 49. Kg1 {[%emt 0:0:2]} Nd5 {[%emt 0:0:0]} 50. Ne4+ {[%emt 0:0:9]} Kf5 {[%emt 0:0:1]} 51. Nd6+ {[%emt 0:0:15]
} Kf4 {[%emt 0:0:1]} 52. Nxb7 {[%emt 0:0:3]} Rh6 {[%emt 0:0:45]} 53. Nc5 {[%emt 0:0:18]
} a5 {[%emt 0:0:6]} 54. Ra3 {[%emt 0:0:11]} g3 {[%emt 0:0:35]
} 55. Rxa5 {[%emt 0:0:8]} Ne3 {[%emt 0:0:20]} 56. Nd3+ {[%emt 0:0:11]} Ke4 {[%emt 0:0:3]} 57. Ne1 {[%emt 0:0:3]} Kxd4 {[%emt 0:0:17]} 58. Rg5 {[%emt 0:0:2]
} Nf5 {[%emt 0:0:3]} 59. Rg4+ {[%emt 0:0:5]} Kd5 {[%emt 0:0:0]} 60. a4 {[%emt 0:0:20]} Nd4 {[%emt 0:0:10]} 61. Nd3 {[%emt 0:0:20]} e5 {[%emt 0:0:17]
} 62. Kg2 {[%emt 0:0:4]} Nf5 {[%emt 0:0:20]} 63. Nb4+ {[%emt 0:0:13]
} Ke6 {[%emt 0:0:15]} 64. Kg1 {[%emt 0:0:14]} Nd4 {[%emt 0:0:0]} 65. Kg2 {[%emt 0:0:5]} Rh2+ {[%emt 0:0:31]} 66. Kxg3 {[%emt 0:0:9]} Rxb2 {[%emt 0:0:1]} 67. Na6 {[%emt 0:0:13]} Rb6 {[%emt 0:0:25]} 68. Nc5+ {[%emt 0:0:14]
} Kd5 {[%emt 0:0:3]} 69. Nd7 {[%emt 0:0:1]} Rb3+ {[%emt 0:0:0]} 70. Kf2 {[%emt 0:0:1]} Kd6 {[%emt 0:0:6]} 71. Rg7 {[%emt 0:0:24]} e4 {[%emt 0:0:2]} 72. Nf6 {[%emt 0:0:15]} e3+ {[%emt 0:0:2]} 73. Kg2 {[%emt 0:0:3]
} Rb2+ {[%emt 0:0:1]} 74. Kh3 {[%emt 0:0:7]} e2 {[%emt 0:0:0]} 75. Ne4+ {[%emt 0:0:1]} Ke5 {[%emt 0:0:14]} 76. Re7+ {[%emt 0:0:10]} Kf4 {[%emt 0:0:5]} 77. Ng3 {[%emt 0:0:26]} Kf3 {[%emt 0:0:13]} 78. a5 {[%emt 0:0:9]
} Ra2 {[%emt 0:0:11]} 79. Rf7+ {[%emt 0:0:10]} Ke3 {[%emt 0:0:0]} 80. Re7+ {[%emt 0:0:1]} Kd3 {[%emt 0:0:4]} 81. Re5 {[%emt 0:0:22]} Ra1 {[%emt 0:0:31]} 82. Nxe2 {[%emt 0:0:11]} Nxe2 {[%emt 0:0:1]} 0-1

[Event "FIDE World Rapid-ch Open 2018"]
[White "Bocharov, Ivan"]
[Black "Carlsson, Pontus"]
[Site "St. Petersburg"]
[Round "14.32"]
[Annotator "ChessBase"]
[Result "1-0"]
[Date "2018.12.28"]
[WhiteElo "2563"]
[BlackElo "2463"]
[PlyCount "57"]
[TimeControl "900+10"]

1. e4 {[%emt 0:0:25]} c5 {[%emt 0:0:0]} 2. Nf3 {[%emt 0:0:1]} d6 {[%emt 0:0:0]} 3. d4 {[%emt 0:0:3]} Nf6 {[%emt 0:0:0]} 4. Nc3 {[%emt 0:0:1]} cxd4 {[%emt 0:0:0]} 5. Nxd4 {[%emt 0:0:1]} g6 {[%emt 0:0:0]} 6. Be3 {[%emt 0:0:5]
} Bg7 {[%emt 0:0:1]} 7. f3 {[%emt 0:0:6]} 0-0 {[%emt 0:0:2]
} 8. Qd2 {[%emt 0:0:3]} Nc6 {[%emt 0:0:1]} 9. 0-0-0 {[%emt 0:0:2]} d5 {[%emt 0:0:19]
} 10. Qe1 {[%emt 0:0:1]} e5 {[%emt 0:0:21]} 11. Nxc6 {[%emt 0:0:0]} bxc6 {[%emt 0:0:1]} 12. exd5 {[%emt 0:0:4]} Nxd5 {[%emt 0:0:11]} 13. Bc4 {[%emt 0:0:13]} Be6 {[%emt 0:0:3]} 14. Ne4 {[%emt 0:0:6]} Qc7 {[%emt 0:0:35]
} 15. Bc5 {[%emt 0:0:5]} Rfd8 {[%emt 0:0:6]} 16. Qh4 {[%emt 0:0:28]
} h6 {[%emt 0:0:55]} 17. g4 {[%emt 0:0:10]} Nf4 {[%emt 0:3:43]
} 18. Bxe6 {[%emt 0:0:13]} Rxd1+ {[%emt 0:1:51]} 19. Rxd1 {[%emt 0:0:4]} Nxe6 {[%emt 0:0:1]} 20. Be3 {[%emt 0:0:13]} Nf4 {[%emt 0:0:56]} 21. Nf6+ {[%emt 0:5:25]
} Kh8 {[%emt 0:1:10]} 22. Rd7 {[%emt 0:1:10]} Ng2 {[%emt 0:0:0]} 23. Rxc7 {[%emt 0:1:24]} Nxh4 {[%emt 0:0:2]} 24. Rxf7 {[%emt 0:0:20]} Nxf3 {[%emt 0:0:2]} 25. h3 {[%emt 0:0:18]} a5 {[%emt 0:0:20]} 26. c3 {[%emt 0:1:39]
} a4 {[%emt 0:1:18]} 27. Kd1 {[%emt 0:0:17]} g5 {[%emt 0:0:45]
} 28. Nh5 {[%emt 0:0:11]} a3 {[%emt 0:0:20]} 29. bxa3 {[%emt 0:1:3]} 1-0